{"text_format":"3","workbook":"xlsx","n_sheets":2,"sheets":["JAK POUŽÍVAT TENTO SEŠIT","KLASIFIKAČNÍ SEŠIT"],"not_rendered":{"defined_names":7},"read":"whole","date_system":"1900"}

{"sheet":"JAK POUŽÍVAT TENTO SEŠIT","index":0,"n_rows":10,"n_cols":2,"rows_kept":10}
[null,"POKYNY"]
[null,"Pomocí listu KLASIFIKAČNÍ SEŠIT můžete vypočítat hodnocení (známky), kde se za každé zadání dá získat nastavený počet bodů. "]
[null,"Pokyny: Nezapomeňte si ukládat záložní kopie hodnocení."]
[null,"1. Vyplňte název školy, informace o předmětu, jména studentů a ID studentů (volitelné).   "]
[null,"2. Upravte tabulku hodnocení a bodového průměru, aby odpovídala obvyklému systému hodnocení, který používáte."]
[null,"3. Vyplňte názvy zadání, kvízů nebo testů (např. Kvíz 1), počínaje buňkou H8, a spolu s nimi zadejte body, které lze za každé zadání získat. "]
[null,"4. Vyplňte výsledky pro každého studenta u každého zadání nebo testu. Sloupce Průměr, Výsledek, Písmenná známka a Bodový průměr se počítají automaticky, ale pokud chcete, můžete je přepsat. Pokud chcete udělit kredity navíc, jednoduše dejte zadání více bodů, než jaký je celkový možný počet bodů pro toto zadání."]
[null,"V nabídce Rozložení stránky použijte příkaz Oblast tisku, pokud chcete změnit, co se vytiskne."]
[null,"Výsledky známek jsou založené na standardní procentuální škále podle celkového počtu bodů přiřazených v řádcích 8 a 9. Upravte u jednotlivých zadání nebo testů požadovaný počet bodů a pak upravte procenta pro příslušnou známku. Buňky s výsledky můžete ručně přepsat."]
[null,"Zadejte každé zadání, kvíz nebo test a dosažitelný počet bodů do buněk H8 až X9."]

{"sheet":"KLASIFIKAČNÍ SEŠIT","index":1,"n_rows":24,"n_cols":24,"rows_kept":24,"merged":[[1,1,2,6],[3,1,3,6],[4,1,6,6],[7,4,7,6],[8,4,8,6],[10,4,10,6],[11,4,11,6],[19,1,19,6],[20,1,20,2],[20,3,20,4],[21,1,21,2],[21,3,21,4],[22,1,22,2],[22,3,22,4],[23,1,23,2],[23,3,23,4]]}
[null,"NÁZEV VAŠÍ ŠKOLY"]
[null,"Jméno učitele"]
[{"$nulls":7},"Výsledek",{"$f":"I4*BodyCelkem","v":118},120,126,134,140,{"v":145.6666666666666,"d":"146"},154,160,166,174,180,186,194]
[null,"Předmět/projekt",{"$nulls":5},"%",{"v":0.59,"d":"59%"},{"v":0.6,"d":"60%"},{"v":0.63,"d":"63%"},{"v":0.67,"d":"67%"},{"v":0.7,"d":"70%"},{"v":0.728333333333333,"d":"73%"},{"v":0.77,"d":"77%"},{"v":0.8,"d":"80%"},{"v":0.83,"d":"83%"},{"v":0.87,"d":"87%"},{"v":0.9,"d":"90%"},{"v":0.93,"d":"93%"},{"v":0.97,"d":"97%"}]
[null,"Rok/semestr/čtvrtletí",{"$nulls":5},"Písmenná známka","F","D-","D","D+","C-","C","C+","B-","B","B+","A-","A","A+"]
[{"$nulls":7},"Bodový průměr",0,0.67,1,1.33,1.67,2,2.33,2.67,3,3.33,3.67,4,4]
[]
[{"$nulls":4},"Název zadání nebo testu",null,null,"Esej1","Esej2","1. čtv."]
[{"$nulls":4},"Dosažitelné body celkem:",null,null,50,50,100]
[]
[{"$nulls":4},"Celkový počet zadání a testů:",null,null,{"$f":"COUNTA(H8:X8)","v":3}]
[{"$nulls":4},"Celkový možný počet bodů:",null,null,{"$f":"SUM(H9:X9)","v":200}]
[]
[null,"Jméno studenta","ID studenta","Průměr","Výsledek","Písmenná známka","Bodový průměr","Sloupec6","Sloupec7","Sloupec8","Sloupec9","Sloupec10","Sloupec11","Sloupec12","Sloupec13","Sloupec14","Sloupec15","Sloupec16","Sloupec17","Sloupec18","Sloupec19","Sloupec20","Sloupec21","Sloupec22"]
[null,"Student číslo 1",null,{"$f":"IFERROR(IF(COUNT(Známky[[#This Row],[Sloupec6]:[Sloupec22]])=0,\"\",SUM(Známky[[#This Row],[Sloupec6]:[Sloupec22]])/BodyCelkem),\"\")","v":{"v":0.91,"d":"91.0%"}},{"$f":"IF(COUNT(Známky[[#This Row],[Sloupec6]:[Sloupec22]])=0,\"\",SUM(Známky[[#This Row],[Sloupec6]:[Sloupec22]]))","v":182},{"$f":"IFERROR(IF(Známky[[#This Row],[Průměr]]<>\"\",HLOOKUP(Známky[[#This Row],[Průměr]]*BodyCelkem,TabulkaZnámky,3),\"\"),0)","v":"A-"},{"$f":"IFERROR(IF(Známky[[#This Row],[Průměr]]<>\"\",HLOOKUP(Známky[[#This Row],[Průměr]]*BodyCelkem,TabulkaZnámky,4),\"\"),0)","v":3.67},45,45,92]
[null,"Student číslo 2",null,{"$f":"IFERROR(IF(COUNT(Známky[[#This Row],[Sloupec6]:[Sloupec22]])=0,\"\",SUM(Známky[[#This Row],[Sloupec6]:[Sloupec22]])/BodyCelkem),\"\")","v":{"v":1,"d":"100.0%"}},{"$f":"IF(COUNT(Známky[[#This Row],[Sloupec6]:[Sloupec22]])=0,\"\",SUM(Známky[[#This Row],[Sloupec6]:[Sloupec22]]))","v":200},{"$f":"IFERROR(IF(Známky[[#This Row],[Průměr]]<>\"\",HLOOKUP(Známky[[#This Row],[Průměr]]*BodyCelkem,TabulkaZnámky,3),\"\"),0)","v":"A+"},{"$f":"IFERROR(IF(Známky[[#This Row],[Průměr]]<>\"\",HLOOKUP(Známky[[#This Row],[Průměr]]*BodyCelkem,TabulkaZnámky,4),\"\"),0)","v":{"v":4,"d":"4.00"}},50,50,100]
[{"$nulls":3},{"$f":"IFERROR(IF(COUNT(Známky[[#This Row],[Sloupec6]:[Sloupec22]])=0,\"\",SUM(Známky[[#This Row],[Sloupec6]:[Sloupec22]])/BodyCelkem),\"\")","v":""},{"$f":"IF(COUNT(Známky[[#This Row],[Sloupec6]:[Sloupec22]])=0,\"\",SUM(Známky[[#This Row],[Sloupec6]:[Sloupec22]]))","v":""},{"$f":"IFERROR(IF(Známky[[#This Row],[Průměr]]<>\"\",HLOOKUP(Známky[[#This Row],[Průměr]]*BodyCelkem,TabulkaZnámky,3),\"\"),0)","v":""},{"$f":"IFERROR(IF(Známky[[#This Row],[Průměr]]<>\"\",HLOOKUP(Známky[[#This Row],[Průměr]]*BodyCelkem,TabulkaZnámky,4),\"\"),0)","v":""}]
[{"$nulls":3},{"$f":"IFERROR(IF(COUNT(Známky[[#This Row],[Sloupec6]:[Sloupec22]])=0,\"\",SUM(Známky[[#This Row],[Sloupec6]:[Sloupec22]])/BodyCelkem),\"\")","v":""},{"$f":"IF(COUNT(Známky[[#This Row],[Sloupec6]:[Sloupec22]])=0,\"\",SUM(Známky[[#This Row],[Sloupec6]:[Sloupec22]]))","v":""},{"$f":"IFERROR(IF(Známky[[#This Row],[Průměr]]<>\"\",HLOOKUP(Známky[[#This Row],[Průměr]]*BodyCelkem,TabulkaZnámky,3),\"\"),0)","v":""},{"$f":"IFERROR(IF(Známky[[#This Row],[Průměr]]<>\"\",HLOOKUP(Známky[[#This Row],[Průměr]]*BodyCelkem,TabulkaZnámky,4),\"\"),0)","v":""}]
[{"$nulls":3},{"$f":"IFERROR(IF(COUNT(Známky[[#This Row],[Sloupec6]:[Sloupec22]])=0,\"\",SUM(Známky[[#This Row],[Sloupec6]:[Sloupec22]])/BodyCelkem),\"\")","v":""},{"$f":"IF(COUNT(Známky[[#This Row],[Sloupec6]:[Sloupec22]])=0,\"\",SUM(Známky[[#This Row],[Sloupec6]:[Sloupec22]]))","v":""},{"$f":"IFERROR(IF(Známky[[#This Row],[Průměr]]<>\"\",HLOOKUP(Známky[[#This Row],[Průměr]]*BodyCelkem,TabulkaZnámky,3),\"\"),0)","v":""},{"$f":"IFERROR(IF(Známky[[#This Row],[Průměr]]<>\"\",HLOOKUP(Známky[[#This Row],[Průměr]]*BodyCelkem,TabulkaZnámky,4),\"\"),0)","v":""}]
[]
[null,"Shrnutí předmětu",null,"Průměr",null,"Písmenná známka","Bodový průměr","","","","","","","","","","",""]
[null," Průměr",null,{"$f":"IFERROR(AVERAGE(Známky[[#All],[Průměr]]),0)","v":{"v":0.9550000000000001,"d":"95.5%"}},null,{"$f":"IFERROR(HLOOKUP(D22*BodyCelkem,TabulkaZnámky,3),\"\")","v":"A"},{"$f":"IFERROR(AVERAGE(Známky[[#All],[Bodový průměr]]),0)","v":{"v":3.835,"d":"3.84"}},"","","","","","","","","","","","","","","","",""]
[null," Nejvyšší výsledek",null,{"$f":"IFERROR(MAX(Známky[[#All],[Průměr]]),0)","v":{"v":1,"d":"100.0%"}},null,{"$f":"IFERROR(HLOOKUP(D23*BodyCelkem,TabulkaZnámky,3),\"\")","v":"A+"},{"$f":"IFERROR(MAX(Známky[[#All],[Bodový průměr]]),0)","v":{"v":4,"d":"4.00"}},"","","","","","","","","","","","","","","","",""]
[null," Nejnižší výsledek",null,{"$f":"IFERROR(MIN(Známky[[#All],[Průměr]]),0)","v":{"v":0.91,"d":"91.0%"}},null,{"$f":"IFERROR(HLOOKUP(D24*BodyCelkem,TabulkaZnámky,3),\"\")","v":"A-"},{"$f":"IFERROR(MIN(Známky[[#All],[Bodový průměr]]),0)","v":3.67},"","","","","","","","","","","","","","","","",""]